bitfinex-derivatives/quotes_ETHF0:USTF0_20250910
["timestamp","ask_amount","ask_price","bid_price","bid_amount"]
[1757528664063,3.2078,4348.6,4348.5,0.8289]
[1757528664766,0.235,4348.7,4348.6,0.7085]
[1757528665165,3.4428,4348.7,4348.6,0.7085]
[1757528665364,0.235,4348.7,4348.6,0.7085]
[1757528665667,3.2078,4349.2,4349.1,0.7085]
[1757528665864,3.4428,4349.2,4349.1,0.7085]
[1757528666956,3.2078,4349.2,4349.1,0.7085]
[1757528670065,3.2078,4349.2,4349.1,4.7085]
[1757528670262,3.2078,4349.2,4349.1,5.12231]
[1757528670457,3.2078,4349.2,4349.1,4.7085]
[1757528671065,3.2078,4349.7,4349.6,0.7343]
[1757528673764,3.2078,4349.7,4349.6,0.3243]
[1757528673971,3.2078,4349.7,4349.0,0.1204]
[1757528674175,0.235,4349.6,4349.0,0.3286]
[1757528674364,0.235,4349.6,4349.2,0.3243]
[1757528674570,0.235,4349.6,4349.1,0.3243]
[1757528674870,3.2078,4349.2,4349.1,0.5325]
[1757528675066,3.4428,4349.2,4349.1,0.5325]
[1757528675265,3.4428,4349.2,4349.1,0.7343]
[1757528677666,0.235,4349.6,4349.5,0.8571]
[1757528677972,3.2078,4349.7,4349.6,0.3243]
[1757528678166,3.4428,4349.7,4349.6,0.7343]
[1757528679367,0.235,4349.7,4349.6,0.7343]
[1757528679764,3.2078,4350.2,4350.1,0.2082]
[1757528680064,3.4428,4350.2,4350.1,0.7343]
[1757528680665,3.2078,4350.2,4350.1,0.7343]
[1757528680864,3.4428,4350.2,4350.1,0.7343]
[1757528681874,3.4428,4350.2,4350.1,0.3243]
[1757528682378,3.4428,4350.2,4350.1,0.5325]
[1757528683175,3.4428,4350.2,4350.1,0.3243]
[1757528683364,3.4428,4350.2,4350.1,0.5325]
[1757528686179,3.4428,4350.2,4350.1,0.7343]
[1757528686478,3.2078,4350.2,4350.1,0.7343]
[1757528686873,3.2078,4350.2,4350.1,0.3243]
[1757528687381,3.2078,4350.2,4350.1,0.5325]
[1757528688583,3.2078,4350.2,4350.1,0.3243]
[1757528688783,3.4428,4350.2,4350.1,0.3243]
[1757528689881,3.4428,4350.2,4350.1,0.7343]
[1757528690780,3.2078,4350.2,4350.1,0.7343]
[1757528693282,3.2078,4350.2,4350.1,0.3243]
[1757528694087,3.2078,4350.2,4350.1,0.5325]
[1757528694487,3.2078,4350.2,4350.1,0.7343]
[1757528695889,3.2078,4350.2,4350.1,0.3243]
[1757528698192,7.2078,4350.2,4349.5,0.1228]
[1757528698391,7.2078,4350.2,4349.1,0.18445648]
[1757528698392,3.2078,4349.6,4349.2,0.3165]
[1757528698691,0.235,4349.5,4349.1,0.50095648]
[1757528698893,0.235,4349.5,4349.1,0.3165]
[1757528700390,0.235,4349.5,4348.8,0.4]
[1757528700587,0.235,4349.5,4349.4,0.2085]
[1757528700791,0.235,4349.5,4349.4,0.525]
[1757528700993,0.235,4349.5,4349.4,0.3165]
[1757528701897,0.235,4349.5,4349.1,0.3165]
[1757528702490,0.235,4349.5,4348.6,0.4]
[1757528702696,0.235,4349.5,4349.1,0.3165]
[1757528702892,0.235,4349.5,4348.6,0.4]
[1757528703792,0.235,4349.5,4349.0,0.3289]
[1757528704001,0.235,4349.5,4349.1,0.3165]
[1757528704194,0.235,4349.5,4349.0,0.1204]
[1757528704401,0.235,4349.5,4349.1,0.3165]
[1757528704597,3.2078,4349.2,4349.1,0.525]
[1757528704901,3.2348,4349.2,4349.1,0.525]
[1757528705199,3.2078,4349.2,4349.1,0.7267]
[1757528705693,0.04002325,4351.4,4349.1,0.4102]
[1757528705694,3.2078,4349.7,4349.1,0.4102]
[1757528705888,3.2078,4349.7,4349.6,0.7267]
[1757528706700,0.235,4349.8,4349.6,0.7267]
[1757528706900,0.235,4350.1,4350.0,0.124]
[1757528707099,0.235,4350.1,4350.0,0.8507]
[1757528707297,0.235,4350.1,4349.6,0.3165]
[1757528707489,3.2078,4349.7,4349.5,0.124]
[1757528707695,0.235,4349.6,4349.0,0.3289]
[1757528708002,0.235,4349.6,4349.1,0.3165]
[1757528708495,0.235,4349.6,4349.1,0.525]
[1757528708802,0.235,4349.6,4349.5,0.4405]
[1757528709197,0.46491,4349.6,4348.7,0.3165]
[1757528709404,3.2078,4348.8,4348.7,0.3165]
[1757528709704,3.4428,4348.8,4348.7,0.3165]
[1757528711401,3.4428,4348.8,4348.0,0.124]
[1757528711604,3.4428,4348.8,4348.5,0.4369]
[1757528712203,7.4428,4348.8,4348.1,0.3165]
[1757528712399,3.2078,4348.2,4348.1,0.3165]
[1757528712704,3.4428,4348.2,4348.1,0.3165]
[1757528713299,3.4428,4348.2,4348.1,0.525]
[1757528713605,3.4428,4348.2,4348.1,0.7267]
[1757528714298,3.4428,4348.2,4347.1,0.489]
[1757528714299,7.43778,4348.2,4347.2,0.3165]
[1757528714501,3.2078,4347.3,4347.2,0.7267]
[1757528714812,3.4438,4347.3,4347.2,0.7267]
[1757528716600,3.2078,4347.3,4347.2,0.7267]
[1757528718804,3.2078,4347.3,4347.2,0.525]
[1757528719002,3.2078,4347.3,4347.2,0.7267]
[1757528719495,3.2078,4347.8,4347.7,0.4102]
[1757528719701,3.2078,4347.8,4347.7,0.7267]
[1757528720100,3.2078,4347.8,4347.7,0.525]
[1757528720607,3.2078,4347.8,4347.7,0.3165]
[1757528721099,3.2078,4347.8,4347.7,0.525]
[1757528721499,3.2078,4347.8,4347.7,0.7267]
[1757528722600,3.2078,4347.8,4347.5,0.124]
[1757528722601,7.2078,4347.8,4347.5,0.124]
[1757528722802,0.236,4347.7,4347.5,0.4405]
[1757528723306,0.236,4347.7,4347.2,0.3165]
[1757528723599,3.2078,4347.3,4347.2,0.3165]
[1757528723805,3.4448,4347.3,4347.2,0.3165]
[1757528725201,3.4448,4347.3,4347.1,0.089]
[1757528725202,7.67483,4347.3,4345.9,0.3165]
[1757528725405,0.237,4347.3,4346.1,0.3165]
[1757528725611,0.23006001,4347.2,4346.0,0.124]
[1757528725809,0.237,4347.1,4346.0,0.124]
[1757528726108,0.386,4345.1,4345.0,0.3325]
[1757528726298,3.7068,4345.1,4345.0,0.5342]
[1757528726700,3.7068,4345.1,4345.0,0.124]
[1757528726701,3.8278,4345.1,4345.0,0.124]
[1757528726903,3.8278,4345.1,4344.8,1.0]
[1757528726904,0.5082,4344.9,4344.8,1.0]
[1757528727110,0.7452,4344.9,4344.8,1.0]
[1757528727302,0.5082,4344.9,4344.8,1.4313]
[1757528727503,0.6242,4344.9,4344.8,1.4313]
[1757528728106,0.6242,4344.9,4344.8,1.7275]
[1757528729201,0.4306,4344.9,4344.8,1.7275]
[1757528729397,3.4014,4345.1,4345.0,0.5497]
[1757528729602,3.6394,4345.1,4345.0,0.8459]
[1757528729908,3.833,4345.1,4345.0,0.8459]
[1757528732011,3.6384,4345.1,4345.0,0.8459]
[1757528732309,3.4014,4345.1,4345.0,0.8459]
[1757528732512,3.6384,4345.1,4345.0,0.8459]
[1757528732706,3.2078,4345.6,4345.0,0.5497]
[1757528732902,3.4014,4345.6,4345.5,0.8459]
[1757528733208,3.832,4345.6,4345.5,0.8459]
[1757528734003,0.3872,4345.2,4345.1,0.2962]
[1757528734207,0.6242,4345.2,4345.1,0.2962]
[1757528734407,0.3872,4344.9,4344.8,1.2962]
[1757528734709,3.832,4344.9,4344.8,1.5127]
[1757528734912,4.0621,4344.9,4344.8,1.5127]
[1757528735106,4.0621,4344.9,4344.8,1.7275]
[1757528735305,3.6749,4344.9,4344.8,1.7275]
[1757528735610,4.0621,4344.9,4344.8,1.5127]
[1757528735813,4.0621,4344.9,4344.8,1.2962]
[1757528736020,4.1831,4344.9,4344.8,1.2962]
[1757528736712,4.0621,4344.9,4344.8,1.7275]
[1757528736909,3.6749,4344.9,4344.8,1.7275]
[1757528737115,4.0621,4344.9,4344.8,1.7275]
[1757528737411,3.4379,4344.9,4344.8,1.7275]
[1757528737608,3.6749,4344.9,4344.8,1.7275]
[1757528737909,4.0621,4344.9,4344.8,1.7275]
[1757528739008,3.8685,4344.9,4344.8,1.7275]
[1757528739506,4.0621,4344.9,4344.8,1.7275]
[1757528740410,4.0621,4344.9,4344.8,1.2962]
[1757528740610,4.1831,4344.9,4344.8,1.2962]
[1757528741114,4.1831,4344.9,4344.8,1.0]
[1757528741316,4.0621,4344.9,4344.8,1.7275]
[1757528741520,4.1831,4344.9,4344.8,1.2962]
[1757528741817,4.1831,4344.9,4344.8,1.0]
[1757528742217,3.8251,4344.9,4344.6,0.2962]
[1757528742411,3.8251,4344.9,4344.6,0.2165]
[1757528742412,3.4379,4344.9,4344.6,0.2165]
[1757528742619,0.238,4344.8,4344.7,0.5127]
[1757528743519,0.238,4344.8,4344.7,0.7275]
[1757528745418,0.238,4344.8,4344.7,0.2962]
[1757528745719,0.238,4344.8,4344.7,0.7275]
[1757528746216,0.238,4344.8,4344.7,0.5127]
[1757528746417,0.238,4344.8,4344.7,0.7275]
[1757528746613,4.238,4344.8,4344.7,0.2962]
[1757528746808,4.8736678,4344.8,4344.7,0.2962]
[1757528747013,5.1038278,4344.8,4344.7,0.2962]
[1757528747812,4.8736678,4344.8,4344.7,0.2962]
[1757528748213,4.8736678,4344.8,4344.0,0.124]
[1757528748421,3.2078,4344.1,4344.0,0.124]
[1757528748618,4.0814678,4344.1,4344.0,0.124]
[1757528748913,0.23023,4344.0,4342.5,0.1184]
[1757528749114,3.2078,4342.6,4342.5,0.5497]
[1757528749317,0.6356678,4342.6,4342.5,0.5497]
[1757528749520,1.52134056,4343.6,4342.5,0.5497]
[1757528749521,3.2078,4343.0,4342.9,0.4313]
[1757528749715,0.2002,4343.1,4343.0,0.1184]
[1757528749913,0.8841,4343.1,4343.0,0.5497]
[1757528750117,1.1799,4343.1,4342.0,0.1184]
[1757528750315,3.2078,4342.7,4342.1,0.2962]
[1757528750522,3.2078,4342.7,4342.6,0.2962]
[1757528750722,4.49678029,4342.7,4342.6,0.5127]
[1757528751014,4.25778029,4342.7,4342.6,0.7275]
[1757528751219,3.4468,4342.7,4342.6,0.7275]
[1757528751723,3.2078,4342.7,4342.6,0.7275]
[1757528752018,0.239,4342.8,4342.6,0.4313]
[1757528752220,0.9497,4342.8,4342.7,0.7275]
[1757528752415,0.9497,4342.8,4342.7,0.2962]
[1757528752612,3.8617,4342.8,4342.6,0.2962]
[1757528752812,3.6227,4342.8,4342.7,0.4313]
[1757528753116,3.2078,4342.8,4342.7,0.7275]
[1757528753819,4.1575,4342.8,4342.7,0.7275]
[1757528754122,3.8627,4342.8,4342.7,0.7275]
[1757528754320,3.2078,4342.8,4342.7,0.7275]
[1757528755126,0.4702,4343.1,4343.0,0.8459]
[1757528755315,0.2302,4343.1,4343.0,4.8459]
[1757528756118,3.2078,4343.8,4343.5,0.1184]
[1757528756314,3.2078,4343.8,4343.7,0.7275]
[1757528756516,4.04476761,4343.8,4343.7,0.7275]
[1757528756810,4.55186761,4343.8,4343.7,0.7275]
[1757528757012,3.84456761,4343.8,4343.7,0.7275]
[1757528757422,4.34756761,4343.8,4343.7,0.7275]
[1757528757922,4.04826761,4343.8,4343.7,0.7275]
[1757528758119,3.84456761,4343.8,4343.7,0.7275]
[1757528758421,0.24,4344.0,4343.9,0.7367]
[1757528758620,0.4437,4344.0,4343.9,0.7367]
[1757528759410,0.2301,4344.2,4344.0,0.124]
[1757528759616,0.2037,4344.2,4344.1,0.7367]
[1757528760525,3.4468,4344.3,4344.2,0.325]
[1757528760526,3.2078,4344.3,4344.2,0.325]
[1757528760823,0.2993,4344.9,4344.1,0.4117]
[1757528760824,0.2301,4344.6,4344.5,0.5357]
[1757528761020,0.2301,4344.6,4344.5,0.8607]
[1757528761617,3.7461,4344.8,4344.6,0.325]
[1757528761814,3.8583,4344.8,4344.7,0.2034]
[1757528762018,4.49529186,4344.8,4344.7,0.2034]
[1757528762217,3.8583,4344.8,4344.7,0.2034]
[1757528762425,0.4115,4344.5,4344.4,0.5284]
[1757528762621,0.7108,4344.5,4344.4,0.5284]
[1757528762923,0.4115,4344.5,4344.4,0.7367]
[1757528763521,0.7108,4344.5,4344.4,0.7367]
[1757528763822,0.4115,4344.5,4344.4,0.7367]
[1757528764822,0.2037,4344.5,4344.4,0.7367]
[1757528765027,3.4115,4344.8,4344.7,0.7367]
[1757528765229,3.2078,4344.8,4344.7,0.7367]
[1757528765522,0.23,4345.2,4344.7,4.7367]
[1757528765724,3.7108,4346.1,4346.0,0.4117]
[1757528765924,4.58259542,4346.1,4346.0,0.7367]
[1757528766119,0.2037,4345.6,4345.5,0.5357]
[1757528766426,0.2037,4345.6,4345.5,0.8607]
[1757528766627,0.503,4345.9,4345.8,0.4117]
[1757528766822,0.7108,4345.9,4345.5,0.124]
[1757528767026,0.7108,4345.3,4344.8,0.325]
[1757528767226,0.7108,4345.3,4344.3,3.2078]
[1757528767227,0.2993,4344.5,4344.3,3.5328]
[1757528767524,0.7108,4344.4,4344.3,3.7362]
[1757528767720,0.7108,4344.4,4344.3,0.5284]
[1757528768221,0.2993,4344.3,4344.0,0.325]
[1757528768526,0.1282,4345.0,4344.0,0.325]
[1757528768527,0.7108,4345.1,4345.0,0.8607]
[1757528768826,0.2078,4344.8,4344.7,0.5284]
[1757528769122,0.7108,4344.8,4344.7,0.5284]
[1757528769320,0.7108,4344.8,4344.6,0.4]
[1757528769514,0.7108,4344.8,4343.9,0.241]
[1757528769515,0.7108,4344.8,4344.7,0.2034]
[1757528769718,0.7108,4344.8,4344.7,0.7367]
[1757528769923,4.9518,4344.8,4344.1,0.325]
[1757528770117,0.7108,4343.9,4343.8,0.5284]
[1757528771129,3.2078,4344.4,4344.3,0.7367]
[1757528771316,0.4447,4344.4,4344.3,0.7367]
[1757528772021,0.4447,4344.4,4343.9,0.325]
[1757528772022,0.4115,4344.0,4343.9,0.325]
[1757528772221,0.7108,4344.0,4343.9,0.5284]
[1757528772420,3.2078,4344.4,4344.1,0.41428]
[1757528772621,3.9186,4344.4,4344.3,0.7367]
[1757528772818,4.1596,4344.4,4344.3,0.7367]
[1757528773224,4.1596,4344.4,4344.3,0.5284]
[1757528773528,4.1596,4344.4,4344.3,0.2034]
[1757528773729,0.2078,4344.2,4344.0,0.53829]
[1757528773923,0.7108,4344.2,4344.1,0.5284]
[1757528774224,0.2993,4343.6,4343.3,3.2078]
[1757528774418,0.7108,4343.5,4343.4,0.5284]
[1757528774930,0.7108,4343.5,4343.4,0.7367]
[1757528775128,0.2037,4342.9,4342.8,3.9445]
[1757528775334,0.2037,4342.9,4342.4,0.325]
[1757528775335,0.7108,4342.9,4342.4,0.325]
[1757528775523,0.2037,4342.8,4342.7,0.7367]
[1757528775827,0.18,4343.1,4342.7,0.7367]
[1757528775828,0.6525,4343.1,4342.7,0.725]
[1757528776125,0.7108,4342.8,4342.7,0.9284]
[1757528776322,0.2993,4342.7,4342.2,3.5328]
[1757528776524,0.2037,4342.3,4342.2,3.9445]
[1757528776725,0.7108,4342.3,4342.2,3.9445]
[1757528776932,0.2037,4342.3,4342.2,3.9445]
[1757528777232,0.2037,4342.8,4342.7,0.7367]
[1757528777826,0.2993,4343.2,4342.7,0.7367]
[1757528778022,3.2078,4343.4,4343.1,0.7367]
[1757528778227,0.1282,4345.0,4343.8,0.7367]
[1757528778228,3.4115,4343.9,4343.8,0.7367]
[1757528778429,3.9518,4343.9,4343.8,0.7367]
[1757528778928,3.4115,4343.9,4343.8,0.7367]
[1757528779137,3.9186,4343.9,4343.8,0.2034]
[1757528779334,3.9186,4343.9,4343.8,0.7367]
[1757528779722,3.2078,4343.9,4343.8,0.7367]
[1757528780236,0.2993,4343.2,4342.1,0.325]
[1757528780534,3.6193,4343.2,4343.1,0.7367]
[1757528780731,0.241,4343.5,4343.1,0.7367]
[1757528780934,3.4115,4343.7,4343.6,0.7367]
[1757528781133,0.241,4344.0,4343.7,0.325]
[1757528781333,0.2037,4344.0,4343.9,0.7367]
[1757528781631,0.2037,4344.1,4344.0,0.5357]
[1757528781936,0.2037,4344.1,4343.5,3.7318]
[1757528781937,0.4115,4344.1,4343.5,3.7318]
[1757528782235,0.2037,4343.6,4343.5,4.4685]
[1757528782834,0.7108,4343.6,4343.5,1.1367]
[1757528783031,0.7108,4343.6,4343.5,0.2034]
[1757528783238,0.7108,4343.6,4343.5,0.5284]
[1757528783536,0.7108,4343.6,4343.5,0.2034]
[1757528784134,0.4275,4343.5,4343.1,0.4]
[1757528784337,0.4275,4343.5,4343.0,0.7367]
[1757528784338,0.503,4343.1,4343.0,0.7367]
[1757528784534,0.2037,4343.1,4343.0,0.8607]
[1757528784728,0.2037,4343.1,4343.0,1.1367]
[1757528785038,0.503,4343.1,4343.0,1.1367]
[1757528785233,0.2037,4343.1,4343.0,1.1367]
[1757528785430,3.2078,4343.3,4343.2,0.7367]
[1757528785636,3.9186,4343.3,4343.2,0.7367]
[1757528785826,3.9186,4343.3,4343.2,0.2034]
[1757528787058,3.9186,4343.3,4343.2,0.4994]
[1757528787235,0.7108,4343.3,4343.2,0.7043]
[1757528787546,0.242,4343.5,4343.4,0.7025]
[1757528787833,0.7111,4343.5,4343.4,0.7025]
[1757528788039,0.7111,4343.5,4343.4,0.2016]
[1757528788441,0.7111,4343.5,4343.0,0.8257]
[1757528788442,0.5429,4343.5,4343.0,0.696]
[1757528788629,0.7111,4343.1,4343.0,0.8976]
[1757528788834,0.2957,4343.6,4343.0,1.64658]
[1757528789039,0.7111,4343.6,4343.5,0.4976]
[1757528789241,0.7111,4343.1,4343.0,0.8976]
[1757528789643,0.4154,4343.1,4343.0,1.2322]
[1757528789842,0.7111,4343.1,4343.0,1.1025]
[1757528790436,0.4154,4343.1,4343.0,1.2322]
[1757528790636,0.7111,4343.1,4343.0,1.1025]
[1757528790942,0.7111,4343.1,4343.0,0.4]
[1757528791342,0.7111,4343.1,4341.7,2.87413375]
[1757528791343,0.2957,4342.6,4342.0,0.84018]
[1757528791542,0.7111,4342.6,4342.5,0.4976]
[1757528791741,0.7111,4342.2,4342.1,0.4]
[1757528791941,0.2957,4342.1,4341.7,0.296]
[1757528792137,3.2078,4342.4,4341.7,0.4976]
[1757528792138,0.7111,4341.8,4341.7,0.4976]
[1757528792346,0.7111,4341.8,4341.7,0.8976]
[1757528792945,0.2158,4341.8,4341.7,1.1025]
[1757528793152,0.241,4342.1,4341.7,0.4065]
[1757528793347,0.241,4342.1,4341.5,0.3313]
[1757528793348,0.2158,4341.6,4341.5,0.3313]
[1757528793542,0.7111,4341.6,4341.5,0.4976]
[1757528793737,0.7111,4341.6,4341.5,0.4]
[1757528793939,0.7111,4341.6,4341.1,0.241]
[1757528793940,0.4232,4341.5,4341.1,0.537]
[1757528794146,0.2957,4341.1,4341.0,0.00399312]
[1757528794336,0.7111,4341.1,4341.0,0.00399312]
[1757528794537,0.7111,4341.1,4341.0,0.41399312]
[1757528794839,0.7111,4341.1,4339.3,6.08193375]
[1757528794840,0.2957,4340.9,4339.3,6.08193375]
[1757528795139,3.2078,4339.8,4339.4,0.296]
[1757528795341,3.2078,4339.8,4338.8,3.2078]
[1757528795342,0.52614,4339.7,4338.8,3.2078]
[1757528795532,0.52614,4339.7,4338.3,0.41483]
[1757528795533,3.2078,4338.9,4338.3,0.41483]
[1757528795733,3.2078,4338.9,4338.5,0.1297]
[1757528795939,3.2078,4338.9,4338.7,0.296]
[1757528796140,3.2078,4338.9,4338.6,0.14688751]
[1757528796141,0.2957,4338.8,4338.6,0.14688751]
[1757528796845,0.09611249,4338.7,4337.7,3.5038]
[1757528797036,0.09611249,4338.7,4337.7,0.296]
[1757528797037,0.2957,4338.3,4337.7,0.296]
[1757528797234,0.2957,4337.7,4336.7,0.41498]
[1757528797439,0.4232,4337.5,4336.8,0.296]
[1757528797634,0.4232,4337.5,4336.3,0.296]
[1757528797635,0.2957,4337.2,4336.3,0.296]
[1757528797839,0.244,4337.1,4336.3,0.296]
[1757528798143,0.2957,4337.0,4336.3,0.296]
[1757528798338,0.5397,4337.0,4336.3,0.296]
[1757528798737,0.244,4337.1,4336.5,0.1297]
[1757528798942,0.5397,4337.1,4336.5,0.1297]
[1757528799137,0.5397,4337.1,4336.4,0.296]
[1757528799644,0.244,4337.0,4336.4,0.296]
[1757528799945,0.2957,4336.7,4336.0,0.4257]
[1757528800245,3.2078,4336.8,4336.2,0.296]
[1757528800541,3.2078,4336.8,4336.4,0.296]
[1757528800744,0.2957,4336.7,4336.4,0.296]
[1757528800940,3.2078,4336.8,4336.2,0.296]
[1757528801648,3.2078,4336.8,4336.2,0.71103]
[1757528801849,3.2078,4336.8,4336.3,0.296]
[1757528802044,3.2078,4336.8,4336.1,3.62284]
[1757528802249,3.2078,4336.8,4336.2,0.71103]
[1757528802750,0.244,4337.1,4336.5,0.1297]
[1757528803341,0.244,4337.1,4336.6,0.296]
[1757528803541,0.2957,4336.9,4336.1,3.5038]
[1757528803742,0.2957,4336.9,4336.3,0.296]
[1757528804052,3.5035,4337.4,4336.5,0.1297]
[1757528804251,0.244,4337.3,4336.6,0.296]
[1757528804549,3.5035,4337.4,4336.7,0.296]
[1757528804550,3.7475,4337.4,4336.7,0.296]
[1757528804746,3.5035,4337.9,4337.1,0.296]
[1757528804947,0.244,4337.8,4337.1,0.296]
[1757528805152,0.2957,4337.7,4337.1,0.296]
[1757528805953,0.2957,4337.6,4336.7,0.296]
[1757528806253,0.2957,4337.4,4336.7,0.296]
[1757528806449,0.2957,4337.3,4336.8,0.4]
[1757528806850,0.2957,4337.3,4336.5,0.4257]
[1757528807053,0.2957,4337.3,4336.5,0.8407]
[1757528807250,0.2957,4337.3,4336.5,0.4257]
[1757528807557,0.244,4337.5,4337.0,0.1297]
[1757528807856,0.2957,4337.4,4337.0,0.1297]
[1757528808042,0.2957,4337.4,4337.1,0.296]
[1757528808247,0.2957,4337.4,4337.0,0.1297]
[1757528808448,0.244,4337.5,4337.0,0.1297]
[1757528808743,0.244,4337.5,4337.1,0.296]
[1757528808947,0.2957,4337.4,4336.8,0.296]
[1757528809155,0.2957,4337.4,4336.9,0.296]
[1757528809359,3.5035,4337.9,4337.1,0.296]
[1757528809551,3.5035,4337.9,4337.4,0.296]
[1757528809749,3.5035,4337.9,4337.3,0.41493]
[1757528809750,3.5035,4337.9,4337.6,0.296]
[1757528809953,0.2957,4338.3,4337.6,0.296]
[1757528810247,0.2957,4338.3,4337.5,0.54461]
[1757528810248,0.2957,4338.3,4337.7,0.296]
[1757528810656,3.2078,4338.4,4337.8,0.296]
[1757528810854,0.2305,4338.3,4337.8,0.296]
[1757528811051,0.2305,4338.3,4338.1,0.296]
[1757528811553,0.2305,4338.3,4338.0,0.1297]
[1757528811554,0.2305,4338.3,4338.2,0.296]
[1757528811953,0.5262,4338.3,4337.8,0.296]
[1757528812154,0.5262,4338.3,4337.7,0.65888]
[1757528812455,0.5262,4338.3,4337.8,0.296]
[1757528812651,0.5262,4338.3,4337.7,0.65888]
[1757528812861,0.5262,4338.3,4337.9,0.296]
[1757528813452,0.2305,4338.3,4338.0,0.1297]
[1757528813658,0.2305,4338.3,4338.0,0.54456]
[1757528814054,0.2305,4338.3,4338.1,0.296]
[1757528814560,0.2305,4338.3,4338.2,0.296]
[1757528814960,0.2957,4338.2,4337.0,3.52270648]
[1757528815150,0.2957,4337.8,4337.5,0.296]
[1757528815355,0.5115,4337.6,4337.5,0.8976]
[1757528815556,0.7111,4337.6,4337.5,0.4]
[1757528815756,0.2957,4337.5,4337.3,0.244]
[1757528816058,0.2158,4337.2,4337.1,0.7025]
[1757528816359,0.2158,4337.2,4337.1,1.3465]
[1757528817463,0.7249,4337.2,4337.1,1.3465]
[1757528818754,0.4303,4337.2,4337.0,0.41496]
[1757528819062,0.1977,4337.3,4337.2,0.41494]
[1757528819258,0.1977,4337.3,4337.2,0.81444]
[1757528819454,3.5024,4337.9,4337.0,0.1263]
[1757528819650,3.9146,4337.9,4337.8,0.7136]
[1757528819854,0.7068,4337.9,4337.8,0.7136]
[1757528820054,0.4122,4337.9,4337.8,0.7136]
[1757528820459,0.1977,4338.0,4337.9,0.3141]
[1757528820657,0.1977,4338.0,4337.9,0.3995]
[1757528821058,0.4282,4338.3,4338.2,0.3995]
[1757528821362,0.2305,4338.3,4338.2,0.7136]
[1757528821762,3.62,4338.9,4338.8,0.198]
[1757528821969,4.53719825,4338.9,4338.8,0.5121]
[1757528822662,4.53719825,4338.9,4338.8,0.198]
[1757528822963,0.1977,4338.6,4338.5,1.2399]
[1757528823361,0.82029825,4338.6,4338.5,1.2399]
[1757528824357,1.32939825,4338.6,4338.5,1.1136]
[1757528824558,1.32939825,4338.6,4338.2,3.4508]
[1757528824559,1.32939825,4338.6,4338.2,0.243]
[1757528824761,0.2946,4337.9,4337.3,0.41492]
[1757528825060,0.4122,4338.0,4337.2,3.2078]
[1757528825061,0.7068,4337.7,4337.6,0.4]
[1757528825258,0.7068,4337.4,4337.3,0.5121]
[1757528825659,0.7068,4337.4,4337.3,0.9121]
[1757528825865,0.7068,4337.4,4337.3,0.5121]
[1757528825866,1.31911493,4337.4,4337.3,0.5121]
[1757528826064,1.31911493,4337.4,4337.3,0.198]
[1757528827163,1.31911493,4337.4,4337.3,0.5121]
[1757528827557,1.31911493,4337.4,4337.3,0.7136]
[1757528827757,0.81001493,4337.4,4337.3,0.7136]
[1757528827964,0.2946,4338.4,4337.5,0.1263]
[1757528828262,1.31931044,4338.3,4338.2,0.198]
[1757528828466,1.31931044,4338.3,4338.2,0.5121]
[1757528828672,0.2946,4337.8,4337.2,0.3141]
[1757528828861,3.5712,4338.5,4337.2,0.3141]
[1757528828862,0.1977,4337.6,4337.5,0.8399]
[1757528829063,0.80630132,4337.6,4337.5,0.8399]
[1757528829262,0.80630132,4337.6,4337.5,0.7136]
[1757528829263,1.31540132,4337.6,4337.5,0.7136]
[1757528829564,0.7068,4337.6,4337.5,0.7136]
[1757528830369,0.1977,4337.6,4337.5,0.7136]
[1757528830565,0.4923,4338.0,4337.9,0.7136]
[1757528830874,0.60816643,4338.0,4337.9,0.7136]
[1757528831164,0.80586643,4338.0,4337.9,0.7136]
[1757528831470,0.80586643,4338.0,4337.5,0.7136]
[1757528831471,0.4122,4337.6,4337.5,0.7136]
[1757528831771,0.1977,4337.3,4337.2,1.12854]
[1757528832670,0.2946,4337.6,4337.4,0.41491]
[1757528832868,0.1977,4337.4,4337.3,0.7136]
[1757528833171,3.9146,4338.1,4338.0,0.5121]
[1757528833371,4.52017207,4338.1,4338.0,0.5121]
[1757528833573,4.52017207,4338.1,4337.5,0.4404]
[1757528833769,0.4122,4337.6,4337.1,3.4498]
[1757528833970,0.4923,4337.3,4337.2,0.5121]
[1757528834170,0.1977,4337.3,4337.2,0.7136]
[1757528834667,0.3624,4338.0,4337.1,3.86475]
[1757528834668,0.7746,4338.0,4337.5,0.3141]
[1757528834878,0.1977,4337.1,4337.0,0.8399]
[1757528835069,0.1977,4336.6,4336.5,0.6384]
[1757528835270,0.1977,4336.6,4336.5,0.8399]
[1757528835566,0.1977,4336.6,4336.5,1.25491]
[1757528835766,0.1977,4336.9,4336.8,0.3995]
[1757528835967,0.1977,4336.9,4336.8,0.7136]
[1757528836369,0.4397,4337.4,4337.3,0.7136]
[1757528836569,0.80302064,4337.4,4337.3,0.7136]
[1757528836967,0.80302064,4337.4,4336.6,6.23364385]
[1757528836968,0.2946,4337.3,4336.6,3.2078]
[1757528837166,0.7068,4337.3,4337.2,0.198]
[1757528837370,1.3112072,4337.3,4337.2,0.5121]
[1757528837766,3.5024,4337.7,4337.2,0.7136]
[1757528837968,0.79641483,4337.6,4337.5,0.7136]